bitfinex-derivatives/quotes_ETHF0:USTF0_20251009
["timestamp","ask_amount","ask_price","bid_price","bid_amount"]
[1760001611028,0.8387,4345.4,4345.1,0.8003]
[1760001611223,3.53807432,4345.2,4345.1,1.3353]
[1760001611428,0.5211,4345.2,4345.1,1.3353]
[1760001611630,3.51746859,4345.2,4345.1,1.3353]
[1760001611831,4.90706859,4345.2,4345.1,0.8003]
[1760001612026,1.9107,4345.0,4344.9,0.8003]
[1760001612429,4.90706859,4345.0,4344.9,0.8003]
[1760001612631,2.99636859,4345.0,4344.6,0.8003]
[1760001612931,0.5211,4344.2,4344.1,0.8003]
[1760001613135,0.5211,4344.2,4344.1,2.28732]
[1760001613631,0.5211,4344.2,4344.1,1.8731]
[1760001613832,1.072,4344.2,4344.1,1.8731]
[1760001614436,0.5211,4344.2,4344.1,1.8731]
[1760001614638,0.4142,4344.5,4344.2,0.41422]
[1760001614829,0.9353,4344.5,4344.4,1.8731]
[1760001615033,2.3249,4344.5,4344.4,1.8731]
[1760001615237,5.34740132,4344.5,4344.4,0.8003]
[1760001615535,4.93320132,4344.5,4344.4,0.8003]
[1760001616135,4.09450132,4344.5,4344.4,1.8731]
[1760001616341,3.02250132,4344.5,4344.4,1.8731]
[1760001616638,0.5211,4345.2,4345.1,1.8731]
[1760001617038,3.47894742,4345.2,4345.1,1.8731]
[1760001617934,0.184,4346.0,4345.6,0.8003]
[1760001618141,0.56429178,4345.8,4345.7,0.8003]
[1760001618338,3.61349853,4345.8,4345.7,0.8003]
[1760001618538,1.25271,4346.5,4345.8,0.41406]
[1760001618747,0.41398,4346.7,4345.8,1.21436]
[1760001619248,0.41399,4346.6,4345.8,1.21436]
[1760001619836,0.414,4346.5,4345.8,0.8003]
[1760001620247,0.41401,4346.4,4345.8,0.8003]
[1760001620446,0.41399,4346.6,4345.8,0.8003]
[1760001620749,0.41401,4346.4,4345.8,0.8003]
[1760001621342,0.8387,4347.3,4345.8,0.8003]
[1760001621547,0.56442477,4347.2,4347.1,0.8003]
[1760001621742,3.14669248,4347.2,4347.1,0.8003]
[1760001621948,0.184,4347.2,4347.1,0.8003]
[1760001622448,3.14921875,4347.2,4347.1,0.80195534]
[1760001624240,0.18652627,4347.2,4347.1,0.80195534]
[1760001624442,0.00252627,4347.2,4347.1,0.80195534]
[1760001624746,0.00252627,4347.2,4347.1,5.80195534]
[1760001625143,0.01736826,4347.9,4347.8,0.41387]
[1760001625445,0.01736826,4347.9,4347.8,0.8003]
[1760001626153,0.01948688,4347.9,4347.8,0.8003]
[1760001626540,0.8387,4347.8,4347.2,0.8003]
[1760001626745,1.25263,4347.3,4347.1,0.00165534]
[1760001626948,1.25263,4347.3,4347.1,0.80195534]
[1760001627250,1.25263,4347.3,4347.2,0.8003]
[1760001627442,0.41393,4347.3,4347.2,0.8003]
[1760001627639,0.41389,4347.7,4347.1,0.00165534]
[1760001627951,3.04110913,4347.6,4347.5,0.3335]
[1760001628151,3.04110913,4347.6,4347.5,1.1338]
[1760001628449,3.60334609,4347.6,4347.5,1.1338]
[1760001628644,0.41388,4347.8,4347.5,0.3335]
[1760001628844,0.41388,4347.8,4347.6,0.8532]
[1760001629040,2.93087688,4347.8,4347.6,0.8532]
[1760001629246,0.01948688,4347.9,4347.6,0.8532]
[1760001629941,0.01948688,4347.9,4347.8,0.8532]
[1760001633150,0.8216,4349.4,4347.8,5.8532]
[1760001633355,0.41378,4348.8,4348.6,0.8532]
[1760001633651,0.41376,4349.0,4348.6,0.8532]
[1760001633848,0.41374,4349.2,4349.1,0.8532]
[1760001634050,0.97561571,4349.2,4349.1,0.8532]
[1760001634247,3.98983913,4349.2,4349.1,0.8532]
[1760001634753,0.4138,4348.6,4348.5,1.1746]
[1760001635056,0.4138,4348.6,4348.0,0.3214]
[1760001635057,0.41384,4348.1,4348.0,1.1746]
[1760001635249,0.41384,4348.2,4348.1,0.8532]
[1760001638751,0.41384,4348.2,4348.1,1.9437]
[1760001641861,0.95844,4348.2,4348.1,1.9437]
[1760001643371,0.41384,4348.2,4348.1,1.9437]
[1760001643570,0.41383,4348.3,4348.1,1.0905]
[1760001643770,0.41383,4348.3,4348.2,2.35754]
[1760001643972,3.04044335,4348.5,4348.4,2.35752]
[1760001644166,1.21824,4349.3,4348.6,0.8056]
[1760001644466,5.31959335,4349.1,4349.0,1.3609]
[1760001644660,2.27915,4349.1,4349.0,1.3609]
[1760001645564,2.27915,4349.1,4349.0,2.2352]
[1760001645565,0.56156128,4349.1,4349.0,2.2352]
[1760001645770,1.49005,4349.1,4349.0,2.2352]
[1760001645973,0.41375,4349.1,4349.0,2.2352]
[1760001646168,0.97583454,4349.1,4349.0,2.2352]
[1760001646868,0.56208454,4349.1,4349.0,2.2352]
[1760001647068,0.1839,4349.3,4349.0,2.64896]
[1760001647370,0.56241804,4349.1,4349.0,2.2352]
[1760001647766,0.56241804,4349.1,4349.0,2.64896]
[1760001647970,0.97616804,4349.1,4349.0,2.2352]
[1760001648175,2.84156804,4349.1,4349.0,2.2352]
[1760001649167,2.05246804,4349.1,4349.0,2.2352]
[1760001650075,0.9682,4348.6,4348.5,2.2352]
[1760001650280,1.53061804,4348.6,4348.5,2.2352]
[1760001651466,2.84161804,4348.6,4348.5,2.2352]
[1760001651674,2.84161804,4348.6,4348.5,1.3609]
[1760001652173,2.05251804,4348.6,4348.5,1.6819]
[1760001652768,2.05251804,4348.6,4348.5,0.8056]
[1760001652968,1.8654,4347.6,4346.5,0.321]
[1760001653273,0.5544,4347.3,4347.2,1.9142]
[1760001653471,2.27937,4347.2,4346.7,0.8056]
[1760001653667,2.84178804,4347.2,4346.7,0.8056]
[1760001653873,6.04552271,4347.2,4346.7,0.8056]
[1760001654370,0.96848,4346.1,4346.0,1.4296]
[1760001654976,2.05409937,4346.1,4346.0,2.2352]
[1760001655273,2.05632209,4346.1,4346.0,2.2375963]
[1760001657171,1.07852272,4346.1,4346.0,2.2375963]
[1760001657372,0.00222272,4346.1,4346.0,2.2375963]
[1760001657773,0.00056738,4346.1,4346.0,7.2375963]
[1760001659774,0.00056738,4346.1,4346.0,2.2375963]
[1760001659975,0.41403,4346.6,4346.5,2.1524]
[1760001660271,2.92403644,4347.2,4347.0,0.3055]
[1760001660477,2.92403644,4347.2,4347.1,1.8469]
[1760001660669,4.00470489,4347.6,4347.1,1.066]
[1760001660873,4.00470489,4347.6,4347.2,1.8469]
[1760001660874,0.41396,4347.3,4347.2,1.8469]
[1760001661075,0.94436,4347.3,4347.2,1.8469]
[1760001661384,3.91422489,4347.3,4347.2,1.8469]
[1760001662272,3.91422489,4347.3,4347.0,0.7809]
[1760001662273,2.28218,4347.1,4347.0,0.7809]
[1760001662470,1.50358,4347.1,4347.0,2.1524]
[1760001663377,0.94438,4347.1,4347.0,2.1524]
[1760001664180,0.94707818,4347.6,4347.5,2.1524]
[1760001664477,1.50627818,4347.6,4347.5,2.1524]
[1760001664670,4.50257164,4347.6,4347.5,2.1524]
[1760001665081,1.09234818,4347.6,4347.5,2.1524]
[1760001665281,0.53314818,4347.6,4347.5,2.1524]
[1760001665682,0.00274818,4347.6,4347.5,2.1524]
[1760001666274,1.0896,4347.2,4347.1,0.5269]
[1760001666476,0.41401,4346.8,4346.5,0.71954]
[1760001666688,1.0896,4346.8,4346.7,1.8469]
[1760001666980,1.50361,4346.8,4346.7,1.8469]
[1760001668175,1.50361,4346.8,4346.7,2.26092]
[1760001668372,0.41401,4346.8,4346.7,2.26092]
[1760001668575,0.414,4347.0,4346.9,2.2609]
[1760001669183,0.414,4347.0,4346.9,1.8469]
[1760001669884,3.91387897,4347.2,4347.1,1.8469]
[1760001670074,2.96949897,4347.2,4347.1,2.26088]
[1760001670279,3.38346897,4347.2,4347.1,2.26088]
[1760001670874,0.00274818,4347.6,4347.1,1.8469]
[1760001671087,0.41398,4347.1,4347.0,0.3055]
[1760001671283,0.5304,4347.1,4347.0,1.78549]
[1760001671588,2.28218,4347.1,4347.0,1.3078]
[1760001672286,0.41397,4347.2,4347.1,1.8469]
[1760001672481,0.94437,4347.2,4347.1,1.8469]
[1760001672682,3.40875162,4347.3,4347.2,1.47997]
[1760001672883,0.41397,4347.3,4347.2,2.26087]
[1760001673082,0.94434,4347.5,4347.4,2.26085]
[1760001673382,3.93912162,4347.5,4347.4,1.8469]
[1760001673582,4.49832162,4347.5,4347.4,1.8469]
[1760001674185,3.52518162,4347.5,4347.4,1.8469]
[1760001674481,3.93912162,4347.5,4347.4,1.8469]
[1760001674989,4.49832162,4347.5,4347.4,1.8469]
[1760001675186,4.08438162,4347.5,4347.4,2.26085]
[1760001675784,4.49832162,4347.5,4347.4,1.8469]
[1760001676286,0.41398,4347.1,4347.0,0.3055]
[1760001676492,1.0896,4346.7,4346.6,1.3078]
[1760001676684,1.0896,4346.7,4346.6,2.26093]
[1760001677388,1.50362,4346.7,4346.6,1.8469]
[1760001677890,1.50362,4346.7,4346.6,2.26093]
[1760001679089,1.50362,4346.7,4346.6,1.8469]
[1760001679390,1.50362,4346.7,4346.6,2.26093]
[1760001679591,0.94441,4346.9,4346.8,2.26091]
[1760001679991,3.98896429,4346.9,4346.8,2.26091]
[1760001681393,3.98896429,4346.9,4346.8,3.49578983]
[1760001681596,0.41398,4347.1,4347.0,2.56399]
[1760001681794,0.41397,4347.3,4347.2,2.23207]
[1760001681995,3.45082942,4347.3,4347.2,2.23207]
[1760001682194,3.45082942,4347.3,4347.2,3.47073487]
[1760001682195,0.91767,4347.3,4347.2,3.47073487]
[1760001682597,3.95452942,4347.3,4347.2,3.05676487]
[1760001683492,5.27622942,4347.3,4347.2,3.05676487]
[1760001684894,4.48942942,4347.3,4347.2,3.05676487]
[1760001685202,3.03685942,4347.3,4347.2,3.47073487]
[1760001685397,3.54055942,4347.3,4347.2,3.47073487]
[1760001686096,3.54055942,4347.3,4347.2,2.23207]
[1760001686297,3.95451942,4347.3,4347.2,1.8181]
[1760001686997,3.54055942,4347.3,4347.2,2.23207]
[1760001691202,4.07545942,4347.3,4347.2,1.8181]
[1760001691496,3.03685942,4347.3,4347.2,2.23207]
[1760001691702,0.00274818,4347.6,4347.5,2.63214]
[1760001693706,0.96941,4349.0,4348.9,1.1089]
[1760001693907,1.50611,4349.0,4348.9,1.9013]
[1760001694099,4.52684652,4349.0,4348.9,1.9013]
[1760001694298,5.28084652,4349.0,4348.9,1.9013]
[1760001694495,5.28344007,4349.0,4348.9,1.9013]
[1760001694696,1.50612,4348.8,4348.6,1.24036779]
[1760001694895,0.754,4348.5,4348.4,1.24036779]
[1760001695101,0.41388,4348.2,4348.1,1.79446779]
[1760001695304,2.26018,4348.2,4348.1,1.3465]
[1760001695807,5.24641222,4348.2,4348.0,0.3169]
[1760001696109,1.8463,4347.9,4347.8,0.5541]
[1760001696307,1.8463,4347.9,4347.8,1.3465]
[1760001697007,1.0923,4347.9,4347.8,1.3465]
[1760001697196,1.0923,4347.9,4347.8,2.58519235]
[1760001697901,4.89654872,4347.9,4347.8,2.58519235]
[1760001698908,2.26021,4347.8,4347.7,1.23869235]
[1760001699408,2.26021,4347.8,4347.7,2.58519235]
[1760001699801,2.26021,4347.8,4347.7,1.23869235]
[1760001699998,2.26021,4347.8,4347.7,2.58519235]
[1760001702103,1.0346,4348.7,4347.2,1.84339233]
[1760001702104,2.26017,4348.3,4348.2,0.5541]
[1760001702407,5.23901626,4348.3,4348.2,1.3465]
[1760001702908,4.48501626,4348.3,4348.2,1.9013]
[1760001703407,5.23901626,4348.3,4348.2,1.3465]
[1760001703804,1.1679,4348.0,4347.9,1.23844332]
[1760001704009,1.50621,4347.8,4347.7,0.5541]
[1760001704206,1.50621,4347.8,4347.7,3.13974332]
[1760001704506,2.26321,4347.8,4347.7,1.9013]
[1760001705205,1.0923,4347.8,4347.7,1.9013]
[1760001705504,1.50621,4347.8,4347.7,1.9013]
[1760001705703,2.26321,4347.8,4347.7,1.9013]
[1760001706104,0.5556,4347.8,4347.7,3.13974332]
[1760001706302,0.96951,4347.8,4347.7,3.55366332]
[1760001706502,0.96951,4347.8,4347.7,3.13974332]
[1760001707001,2.23818,4348.2,4348.1,1.0576]
[1760001707306,3.93261747,4348.2,4348.1,1.8582]
[1760001708912,5.23601747,4348.2,4348.1,1.8582]
[1760001709110,5.23601747,4348.2,4348.1,1.3246]
[1760001709711,1.48121,4347.9,4347.8,2.29604332]
[1760001710105,4.53800113,4347.9,4347.8,2.29604332]
[1760001710306,4.53800113,4347.9,4347.8,3.09664332]
[1760001711205,3.57769113,4347.9,4347.8,2.27211]
[1760001711402,3.05679113,4347.9,4347.8,2.27211]
[1760001711799,3.4419546,4348.0,4347.9,1.8582]
[1760001712002,1.0673,4348.7,4348.6,1.0576]
[1760001712203,1.0673,4348.7,4348.6,1.8582]
[1760001712399,0.41639355,4349.0,4348.9,1.8582]
[1760001712607,0.41639355,4349.0,4348.9,3.09706233]
[1760001712809,3.96650032,4349.0,4348.9,3.09706233]
[1760001713113,4.51290032,4349.0,4348.9,1.8582]
[1760001713506,3.03180032,4349.0,4348.9,1.8582]
[1760001713707,3.55270032,4349.0,4348.9,1.8582]
[1760001714108,4.09910032,4349.0,4348.9,1.8582]
[1760001716317,3.55270032,4349.0,4348.9,1.8582]
[1760001716514,3.55270032,4349.0,4348.9,3.09706233]
[1760001717612,4.09910032,4349.0,4348.9,1.8582]
[1760001717819,4.85610032,4349.0,4348.9,1.8582]
[1760001718417,4.85610032,4349.0,4348.9,1.3246]
[1760001719112,2.28054,4348.6,4348.5,1.23886233]
[1760001719507,2.28054,4348.6,4348.5,2.58466233]
[1760001719814,0.5383,4348.6,4348.5,2.56165]
[1760001720317,0.95212,4348.9,4348.8,1.8409]
[1760001720713,3.96132976,4348.9,4348.8,3.07853022]
[1760001721018,2.28052,4348.8,4348.7,3.07853022]
[1760001721425,4.0702691,4348.8,4348.7,3.49236022]
[1760001721714,2.9944691,4348.8,4348.7,2.25473]
[1760001721913,0.54089355,4349.0,4348.9,2.25471]
[1760001722110,0.95469355,4349.0,4348.9,1.8409]
[1760001722314,3.9325705,4349.0,4348.9,1.8409]
[1760001722920,5.2609705,4349.0,4348.9,1.3458]
[1760001723514,3.9325705,4349.0,4348.9,1.8409]
[1760001723716,0.54089355,4349.0,4348.9,2.25471]
[1760001723918,0.00259355,4349.0,4348.9,2.25471]
[1760001724818,0.00259355,4349.0,4348.9,3.49243975]
[1760001726016,0.00259355,4349.0,4348.9,2.25471]
[1760001726720,0.95469355,4349.0,4348.9,1.8409]
[1760001727524,0.95469355,4349.0,4348.9,2.25471]
[1760001727821,0.54089355,4349.0,4348.9,2.25471]
[1760001728218,0.00259355,4349.0,4348.9,2.25471]
[1760001730226,0.41639355,4349.0,4348.9,2.25471]
[1760001730420,0.00259355,4349.0,4348.9,2.25471]
[1760001731922,0.41639355,4349.0,4348.9,2.25471]
[1760001732426,0.00259355,4349.0,4348.9,2.25471]
[1760001733725,1.23452915,4352.0,4351.9,0.41352]
[1760001733914,1.23452915,4352.0,4350.2,10.34215]
[1760001733915,0.022,4352.9,4352.5,0.3069]
[1760001734120,1.0978,4352.9,4352.8,0.5266]
[1760001734321,1.0978,4352.9,4352.8,1.3458]
[1760001734322,1.51123,4352.9,4352.8,1.3458]
[1760001734521,1.0978,4352.9,4352.8,1.3458]
[1760001734720,4.84004297,4352.9,4352.8,0.00163892]
[1760001734932,10.25347297,4352.9,4352.8,0.00163892]
[1760001736528,1.8667,4351.6,4351.5,1.6527]
[1760001736925,1.0758,4351.6,4351.5,2.1478]
[1760001737225,0.41349,4352.3,4351.9,0.5266]
[1760001737427,0.5383,4352.0,4351.9,1.0217]
[1760001737930,0.5383,4352.0,4351.9,1.8409]
[1760001738718,0.5383,4352.4,4352.3,1.8409]
[1760001739231,3.54295072,4352.4,4352.3,1.8409]
[1760001740232,4.08045072,4352.4,4352.3,1.8409]
[1760001741027,0.02426024,4352.9,4352.8,2.25434]
[1760001741423,0.0585,4353.2,4353.1,2.25431]
[1760001741827,0.5968,4353.2,4353.1,1.8409]
[1760001742126,0.0585,4353.2,4353.1,1.8409]
[1760001742526,0.06052551,4353.2,4353.1,1.8409]
[1760001743730,0.00202551,4353.2,4353.1,1.8409]
[1760001744425,0.7909,4355.6,4354.9,1.0217]
[1760001744631,1.0758,4355.1,4355.0,2.1478]
[1760001744831,1.8667,4355.1,4355.0,1.3458]
[1760001745037,4.88945535,4355.1,4355.0,1.3458]
[1760001745337,1.8667,4355.2,4354.7,0.8192]
[1760001745523,4.10115349,4355.1,4355.0,2.15048351]
[1760001745722,0.54089814,4355.1,4355.0,2.15048351]
[1760001745932,1.86929814,4355.1,4355.0,1.34848351]
[1760001746131,4.90192737,4355.1,4355.0,0.00268351]
[1760001746931,4.90192737,4355.1,4355.0,1.34848351]
[1760001747435,4.90192737,4355.1,4355.0,0.00268351]
[1760001747735,4.11102737,4355.1,4355.0,2.15048351]
[1760001747931,4.90192737,4355.1,4355.0,0.00268351]
[1760001748137,4.90192737,4355.1,4355.0,0.82188351]
[1760001748541,4.90192737,4355.1,4355.0,1.34848351]
[1760001749133,4.11102737,4355.1,4355.0,2.15788351]
[1760001749628,3.57352737,4355.1,4355.0,2.15788351]
[1760001749831,1.00959814,4355.1,4355.0,1.34848351]
[1760001750137,5.17214824,4355.1,4355.0,1.34848351]
[1760001750332,5.17214824,4355.1,4355.0,0.82188351]
[1760001750640,4.75892824,4355.1,4355.0,0.82188351]
[1760001750832,4.75892824,4355.1,4355.0,1.36358351]
[1760001751037,3.96452824,4355.1,4355.0,2.17298351]
[1760001752435,5.17214824,4355.1,4355.0,0.00268351]
[1760001752838,10.17214824,4355.1,4355.0,0.00268351]
[1760001753935,9.75892824,4355.1,4355.0,0.00268351]
[1760001755142,4.75892824,4355.1,4355.0,0.00268351]
[1760001755640,3.96452824,4355.1,4355.0,2.14648351]
[1760001757736,4.75892824,4355.1,4355.0,0.00268351]
[1760001758444,4.75892824,4355.1,4355.0,0.54438351]
[1760001758742,4.75892824,4355.1,4355.0,1.33708351]
[1760001759139,3.46752824,4355.1,4355.0,1.35378351]
[1760001759439,3.46752824,4355.1,4355.0,2.14648351]
[1760001760031,3.96452824,4355.1,4355.0,2.14648351]
[1760001761140,4.75892824,4355.1,4355.0,0.00268351]
[1760001761345,4.75892824,4355.1,4355.0,1.33708351]
[1760001761843,3.96452824,4355.1,4355.0,2.14648351]
[1760001762046,3.46752824,4355.1,4355.0,2.14648351]
[1760001762638,2.95752824,4355.1,4355.0,2.14648351]
[1760001762846,4.75892824,4355.1,4355.0,0.00268351]
[1760001763145,5.17214824,4355.1,4355.0,0.00268351]
[1760001764741,1.7395,4353.6,4353.5,0.94547]
[1760001764943,0.9904,4353.6,4353.5,2.0756]
[1760001765139,0.4981,4354.0,4353.9,1.0148]
[1760001765343,0.9904,4354.0,4353.9,1.771]
[1760001765539,3.94768468,4354.0,4353.9,1.771]
[1760001765744,3.94768468,4354.0,4353.9,1.77341575]
[1760001767438,1.7395,4354.8,4354.7,1.2883]
[1760001767738,0.4981,4354.0,4353.9,0.75861575]
[1760001767946,1.7395,4354.0,4353.9,0.75861575]
[1760001768146,4.71663986,4354.0,4353.9,0.75861575]
[1760001768546,4.92893986,4354.0,4353.9,0.00241575]
[1760001770037,0.4981,4353.0,4352.9,0.5321]
[1760001770242,0.9904,4353.0,4352.9,1.771]
[1760001770547,3.53425837,4353.0,4352.9,1.771]
[1760001771044,3.53425837,4353.0,4352.6,0.7562]
[1760001771045,0.4981,4352.7,4352.6,0.7562]
[1760001771247,1.7395,4352.7,4352.6,1.29053039]
[1760001771441,4.0029983,4352.7,4352.6,1.77323039]
[1760001772039,4.7520983,4352.7,4352.6,0.00223039]
[1760001772845,9.7520983,4352.7,4352.6,0.00223039]
[1760001773048,10.23370883,4352.7,4352.6,0.00223039]
[1760001773248,9.7520983,4352.7,4352.6,0.00223039]
[1760001773542,2.15306,4351.6,4351.1,0.7562]
[1760001773749,0.4981,4351.1,4351.0,1.5929]
[1760001774147,0.4981,4351.1,4351.0,2.0756]
[1760001774345,0.50093318,4351.1,4351.0,2.07749407]
[1760001774846,0.99323318,4351.1,4351.0,2.07749407]
[1760001775954,0.4981,4351.9,4351.8,1.771]
[1760001776347,3.96650699,4351.9,4351.8,1.771]
[1760001776651,0.9904,4351.2,4351.1,1.771]
[1760001776852,2.97610699,4351.9,4351.2,0.7562]
[1760001777150,3.92770515,4351.4,4351.3,1.771]
[1760001777456,0.9904,4351.4,4351.3,1.771]
[1760001777646,0.4981,4351.4,4351.3,1.771]
[1760001777842,3.43540515,4351.4,4351.3,1.771]
[1760001778042,3.92770515,4351.4,4351.3,1.771]
[1760001778554,1.7704,4351.1,4351.0,0.72609407]
[1760001779053,1.7704,4351.1,4351.0,1.26109407]
[1760001779556,0.9903,4351.1,4351.0,1.57849407]
[1760001779752,0.9903,4351.1,4351.0,2.08779407]
[1760001780252,0.5119,4351.1,4351.0,2.08779407]
[1760001780653,0.7801,4351.5,4351.0,1.36359407]
[1760001780853,1.7704,4351.5,4351.4,1.2592]
[1760001781356,4.7499342,4351.5,4351.4,1.2592]
[1760001781662,3.9698342,4351.5,4351.4,1.2592]
[1760001781854,1.7704,4351.2,4351.1,1.2592]
[1760001782653,0.9903,4351.2,4351.1,1.2592]
[1760001782955,0.9903,4351.2,4351.1,1.7685]
[1760001783655,0.5119,4351.2,4351.1,1.7685]
[1760001783855,1.40386,4351.6,4351.5,2.0859]
[1760001784058,1.40386,4351.6,4351.5,1.2592]
[1760001784059,2.18396,4351.6,4351.5,1.2592]
[1760001784254,2.18396,4351.6,4351.0,0.31929407]
[1760001784255,2.18398,4351.4,4351.3,0.535]
[1760001784557,2.18398,4351.4,4351.0,0.00189407]
[1760001784558,1.7704,4351.1,4351.0,0.00189407]
[1760001785063,4.71152581,4351.1,4351.0,0.00189407]
[1760001785362,5.12512581,4351.1,4351.0,0.00189407]
[1760001786252,4.71152581,4351.1,4351.0,0.00189407]
[1760001786457,4.71152581,4351.1,4351.0,1.26109407]
[1760001786759,3.93142581,4351.1,4351.0,2.08779407]
[1760001787168,5.12512581,4351.1,4351.0,0.00189407]
[1760001788063,3.93142581,4351.1,4351.0,2.08779407]
[1760001788763,2.94112581,4351.1,4351.0,2.50140407]
[1760001788964,2.94112581,4351.1,4351.0,2.08779407]
[1760001789266,0.9903,4351.1,4351.0,2.08779407]
[1760001789663,3.97898059,4351.1,4351.0,2.08779407]
[1760001789863,3.97898059,4351.1,4351.0,2.50140407]
[1760001790256,3.97898059,4351.1,4351.0,2.08779407]
[1760001790661,3.97898059,4351.1,4351.0,2.50140407]
[1760001790862,3.97898059,4351.1,4351.0,2.08779407]
[1760001791067,3.97898059,4351.1,4351.0,2.50140407]
[1760001792568,3.50058059,4351.1,4351.0,2.50140407]
[1760001793862,0.5119,4351.5,4351.0,1.04349407]
[1760001794064,1.40389,4351.2,4351.1,1.2592]
[1760001794363,2.184,4351.1,4351.0,0.00189407]
[1760001794866,2.184,4351.1,4349.5,0.3174]
[1760001794867,1.03413,4350.6,4349.7,0.7242]
[1760001795066,1.7704,4349.8,4349.7,1.2592]
[1760001795465,5.14989263,4349.8,4349.7,1.2592]
[1760001795665,1.7704,4349.6,4349.5,1.2592]
[1760001795868,1.7704,4349.6,4349.5,0.72625835]
[1760001796069,4.74801014,4349.6,4349.5,0.72625835]
[1760001796272,3.96791014,4349.6,4349.5,1.26125835]
[1760001796469,3.96791014,4349.6,4349.5,2.08795835]
[1760001796865,1.19376,4350.5,4350.0,0.4137]
[1760001797069,0.7801,4350.9,4350.4,1.7685]
[1760001797269,0.5119,4350.9,4350.8,1.7685]
[1760001797469,5.11122434,4350.9,4350.8,1.7685]
[1760001797669,3.91750434,4350.9,4350.5,1.0416]
[1760001797868,0.7801,4350.5,4350.2,0.7242]
[1760001798171,0.7801,4350.5,4349.5,1.35382835]
[1760001798172,0.9903,4349.9,4349.8,1.2592]
[1760001798372,1.7704,4349.9,4349.8,1.2592]
[1760001798873,0.9903,4349.9,4349.8,1.2592]
[1760001799174,0.5119,4349.9,4349.8,1.7685]
[1760001800062,0.9903,4349.9,4349.6,0.7242]
[1760001800267,2.94933804,4349.9,4349.7,0.7242]
[1760001800469,0.5119,4349.8,4349.7,0.7242]
[1760001800677,1.7704,4349.8,4349.7,0.7242]
[1760001800970,1.7704,4349.8,4349.5,0.31945835]
[1760001801172,0.9903,4349.6,4349.5,1.99240835]
[1760001801770,4.81692041,4349.6,4349.5,0.00205835]
[1760001802873,4.81692041,4349.6,4349.5,0.72625835]
[1760001803076,4.81692041,4349.6,4349.5,1.26125835]
[1760001803374,4.81692041,4349.6,4349.5,0.72625835]
[1760001803571,4.81692041,4349.6,4349.5,0.00205835]
[1760001803874,4.81692041,4349.6,4349.5,0.72625835]
[1760001804468,4.81692041,4349.6,4349.5,0.00205835]
[1760001805177,5.00181049,4349.6,4349.5,0.00205835]
[1760001805479,0.5119,4348.7,4348.6,1.7685]
[1760001805872,3.93422892,4348.7,4348.6,1.7685]
[1760001806270,2.94392892,4348.7,4348.6,1.7685]
[1760001806474,0.5119,4349.1,4349.0,2.4997]
[1760001806679,0.5119,4349.5,4349.4,1.7685]
[1760001807177,3.457645,4349.5,4349.4,1.7685]
[1760001807377,2.945745,4349.5,4349.4,1.7685]
[1760001807676,3.457645,4349.5,4349.4,1.7685]
[1760001808271,3.936045,4349.5,4349.1,0.7819]
[1760001808465,1.7058,4349.2,4349.1,0.5133]
[1760001808671,0.9889,4348.8,4348.7,0.5133]
[1760001808978,0.9889,4348.8,4348.7,1.2952]
[1760001809679,3.98374367,4348.8,4348.7,1.2952]
[1760001809875,4.70064367,4348.8,4348.7,1.2952]
[1760001810174,3.98374367,4348.8,4348.7,1.2952]
[1760001810366,3.98374367,4348.8,4348.7,1.7764]
[1760001811878,2.99484367,4348.8,4348.7,1.7764]
[1760001814280,1.17569394,4349.5,4349.4,1.2952]
[1760001814572,4.20986637,4349.5,4349.4,1.2952]
[1760001814773,4.92676637,4349.5,4349.4,1.2952]
[1760001814974,0.41378,4349.3,4349.0,0.3079]
[1760001815283,4.04286493,4349.2,4349.1,2.19019]
[1760001815574,3.05396493,4349.2,4349.1,2.19019]
[1760001815781,3.54676493,4349.4,4349.3,1.40827]
[1760001816081,0.18679394,4349.5,4349.3,2.19017]
[1760001816376,3.95731209,4349.4,4349.3,1.7764]
[1760001816579,2.11958,4349.2,4349.1,1.2952]
[1760001816779,0.9889,4349.2,4349.0,1.1957]
[1760001816973,1.7058,4349.1,4349.0,0.9271]
[1760001817277,1.7058,4349.1,4349.0,0.5133]
[1760001817477,4.63775795,4349.1,4349.0,1.2952]
[1760001817677,4.63775795,4349.1,4349.0,1.709]
[1760001817879,4.63775795,4349.1,4349.0,1.2952]
[1760001818280,0.9889,4348.7,4348.6,2.19316217]
[1760001818468,0.9889,4348.7,4348.6,2.19317217]
[1760001819075,0.4928,4348.7,4348.6,2.19317217]
[1760001819276,2.1196,4349.1,4349.0,0.5133]
[1760001819476,1.7058,4349.1,4349.0,1.2952]
[1760001819676,4.71770842,4349.1,4349.0,1.2952]
[1760001819878,4.00080842,4349.1,4349.0,2.4981]
[1760001821280,5.13149842,4349.1,4349.0,2.0843]
[1760001821878,4.71770842,4349.1,4349.0,2.0843]
[1760001822581,4.00080842,4349.1,4349.0,2.4981]
[1760001823085,3.01190842,4349.1,4349.0,2.4981]
[1760001823586,1.13066,4349.4,4349.1,2.19019]
[1760001823587,0.4928,4349.2,4349.1,2.19019]
[1760001823880,3.4307162,4349.2,4349.1,2.19019]
[1760001824084,4.6888162,4349.2,4349.1,1.7764]
[1760001824378,3.9268162,4349.2,4349.1,2.19019]
[1760001824981,3.4307162,4349.2,4349.1,1.7764]
[1760001825177,2.9379162,4349.2,4349.1,1.7764]
[1760001825383,2.9379162,4349.2,4349.1,2.19019]
[1760001825579,3.05413816,4349.3,4349.1,1.40829]
[1760001825781,0.5061,4349.3,4349.2,1.7181]
[1760001825970,0.91987,4349.3,4349.2,1.7181]
[1760001826177,2.16689,4349.1,4349.0,0.4701]
[1760001826484,5.09695951,4349.1,4349.0,1.2079]
[1760001827080,2.4496,4349.0,4348.9,1.23829801]
[1760001827377,2.16693,4348.7,4348.6,1.24123018]
[1760001827581,2.16693,4348.7,4348.6,1.21083217]
[1760001827786,5.14696806,4348.7,4348.6,0.00293217]
[1760001827984,10.14696806,4348.7,4348.6,0.00293217]
[1760001828281,10.14696806,4348.7,4347.7,0.56019788]
[1760001828282,2.16701,4347.8,4347.7,0.56019788]
[1760001828485,1.40508,4347.1,4346.8,1.63490016]
[1760001828781,0.9911,4346.8,4346.7,1.2079]